fUST/lending_fUST_20250927
["ID","MTS","AMOUNT","RATE_DAILY","PERIOD"]
[388043095,1758987043329,-500.0,0.00032921,5]
[388043096,1758987043338,-1000.0,0.00032921,3]
[388043097,1758987043348,-1000.0,0.00032921,5]
[388043098,1758987043357,-1012.16892121,0.00032921,5]
[388043099,1758987043367,-500.0,0.00032933,5]
[388043100,1758987043376,-476.71160914,0.00032933,5]
[388043101,1758987043385,-1000.0,0.00032933,5]
[388043102,1758987043395,-1000.0,0.00032933,5]
[388043103,1758987043404,-1000.0,0.00032933,5]
[388043104,1758987043414,-800.0,0.00032937,2]
[388043105,1758987043424,-1000.0,0.00032948,5]
[388043106,1758987043433,-1000.0,0.00032948,5]
[388043107,1758987043442,-891.19863178,0.00032948,5]
[388043108,1758987043452,-1005.28775606,0.00032948,5]
[388043109,1758987043461,-151.0,0.00032948,7]
[388043110,1758987043471,-151.0,0.00032948,7]
[388043111,1758987043480,-300.607887,0.00032948,7]
[388043112,1758987043489,-300.607887,0.00032948,7]
[388043113,1758987043498,-300.607887,0.00032948,7]
[388043114,1758987043508,-300.607887,0.00032948,7]
[388043115,1758987043518,-299.463198,0.00032948,7]
[388043116,1758987043527,-151.0,0.00032948,7]
[388043117,1758987043536,-151.0,0.00032948,7]
[388043118,1758987043546,-151.0,0.00032948,7]
[388043119,1758987043555,-365.846877,0.00032948,7]
[388043120,1758987043565,-151.0,0.00032948,7]
[388043121,1758987043574,-151.0,0.00032948,7]
[388043122,1758987043583,-151.0,0.00032948,7]
[388043123,1758987043593,-365.846877,0.00032948,7]
[388043124,1758987043602,-151.0,0.00032948,7]
[388043125,1758987043613,-365.846877,0.00032948,7]
[388043126,1758987043622,-151.0,0.00032948,7]
[388043127,1758987043631,-151.0,0.00032948,7]
[388043129,1758987043644,-365.846877,0.00032948,7]
[388043131,1758987043654,-151.0,0.00032948,7]
[388043132,1758987043664,-151.0,0.00032948,7]
[388043133,1758987043674,-1371.244277,0.00032948,7]
[388043134,1758987043684,-1371.244277,0.00032948,7]
[388043135,1758987043693,-1371.244277,0.00032948,7]
[388043136,1758987043703,-1371.244277,0.00032948,7]
[388043137,1758987043712,-151.0,0.0003295,7]
[388043138,1758987043723,-151.0,0.0003295,7]
[388043139,1758987043732,-535.317788,0.0003295,7]
[388043140,1758987043742,-535.317788,0.0003295,7]
[388043141,1758987043752,-535.317788,0.0003295,7]
[388043142,1758987043762,-535.317788,0.0003295,7]
[388043143,1758987043771,-151.0,0.0003295,7]
[388043144,1758987043780,-151.0,0.0003295,7]
[388043145,1758987043789,-151.0,0.0003295,7]
[388043146,1758987043799,-151.0,0.0003295,7]
[388043147,1758987043809,-151.0,0.0003295,7]
[388043148,1758987043818,-151.0,0.0003295,7]
[388043149,1758987043828,-196.679955,0.0003295,7]
[388043150,1758987043837,-151.0,0.0003295,7]
[388043151,1758987043847,-151.0,0.0003295,7]
[388043152,1758987043857,-151.0,0.0003295,7]
[388043153,1758987043866,-151.0,0.0003295,7]
[388043154,1758987043876,-330.27580962,0.00032954,5]
[388043155,1758987043886,-1000.0,0.00032954,5]
[388043156,1758987043896,-1000.0,0.00032954,2]
[388043157,1758987043905,-1000.0,0.00032954,5]
[388043158,1758987043915,-151.0,0.00032965,7]
[388043159,1758987043925,-151.0,0.00032965,7]
[388043160,1758987043935,-151.0,0.00032965,7]
[388043161,1758987043945,-698.590361,0.00032965,7]
[388043162,1758987043955,-195.623985,0.00032965,7]
[388043163,1758987043964,-698.590361,0.00032965,7]
[388043164,1758987043974,-195.623985,0.00032965,7]
[388043165,1758987043984,-698.590361,0.00032965,7]
[388043166,1758987043994,-195.623985,0.00032965,7]
[388043167,1758987044003,-698.590365,0.00032965,7]
[388043168,1758987044013,-195.623981,0.00032965,7]
[388043169,1758987044022,-197.584055,0.00032965,7]
[388043170,1758987044032,-197.584055,0.00032965,7]
[388043171,1758987044042,-197.584055,0.00032965,7]
[388043172,1758987044051,-151.0,0.00032965,7]
[388043173,1758987044060,-197.584056,0.00032965,7]
[388043174,1758987044070,-151.0,0.00032965,7]
[388043175,1758987044080,-151.0,0.00032965,7]
[388043176,1758987044091,-635.0,0.00032965,2]
[388043177,1758987044101,-2161.0,0.00032965,2]
[388043178,1758987044110,-2898.0,0.00032966,2]
[388043179,1758987044120,-151.0,0.0003297,7]
[388043180,1758987044130,-151.0,0.0003297,7]
[388043181,1758987044140,-151.0,0.0003297,7]
[388043182,1758987044149,-151.0,0.0003297,7]
[388043183,1758987044158,-151.0,0.0003297,7]
[388043184,1758987044168,-151.0,0.0003297,7]
[388043185,1758987044177,-500.0,0.00032973,2]
[388043186,1758987044187,-500.0,0.00032973,5]
[388043188,1758987044196,-800.0,0.00032974,2]
[388043189,1758987044206,-151.0,0.0003298,7]
[388043191,1758987044215,-151.0,0.0003298,7]
[388043192,1758987044225,-151.0,0.0003298,7]
[388043193,1758987044235,-151.0,0.0003298,7]
[388043194,1758987044244,-151.0,0.0003298,7]
[388043196,1758987044253,-151.0,0.0003298,7]
[388043198,1758987044263,-257.456792,0.0003298,7]
[388043200,1758987044272,-151.0,0.0003298,7]
[388043202,1758987044282,-6095.581934,0.0003298,7]
[388043204,1758987044291,-151.0,0.0003298,7]
[388043206,1758987044301,-151.0,0.0003298,7]
[388043207,1758987044310,-151.0,0.0003298,7]
[388043209,1758987044320,-283.749832,0.0003298,7]
[388043210,1758987044329,-1215.184263,0.0003298,7]
[388043211,1758987044338,-1215.184263,0.0003298,7]
[388043212,1758987044347,-1215.184263,0.0003298,7]
[388043214,1758987044357,-1215.184263,0.0003298,7]
[388043215,1758987044366,-151.0,0.0003298,7]
[388043216,1758987044376,-151.0,0.0003298,7]
[388043217,1758987044386,-151.0,0.0003298,7]
[388043218,1758987044396,-151.0,0.0003298,7]
[388043219,1758987044405,-151.0,0.0003298,7]
[388043220,1758987044415,-151.0,0.0003298,7]
[388043221,1758987044424,-151.0,0.0003298,7]
[388043222,1758987044434,-151.0,0.0003299,7]
[388043223,1758987044443,-151.0,0.0003299,7]
[388043224,1758987044453,-151.0,0.0003299,7]
[388043225,1758987044463,-151.0,0.0003299,7]
[388043226,1758987044472,-249.264531,0.0003299,7]
[388043227,1758987044481,-151.0,0.0003299,7]
[388043228,1758987044490,-151.0,0.0003299,7]
[388043229,1758987044500,-151.0,0.0003299,7]
[388043230,1758987044511,-151.0,0.0003299,7]
[388043231,1758987044520,-151.0,0.0003299,7]
[388043232,1758987044530,-151.0,0.0003299,7]
[388043233,1758987044540,-151.0,0.0003299,7]
[388043234,1758987044550,-236.792001,0.0003299,7]
[388043235,1758987044560,-151.0,0.0003299,7]
[388043236,1758987044570,-151.0,0.0003299,7]
[388043237,1758987044579,-151.0,0.0003299,7]
[388043238,1758987044589,-225.945381,0.0003299,7]
[388043239,1758987044598,-151.0,0.0003299,7]
[388043240,1758987044608,-535.317788,0.0003299,7]
[388043241,1758987044617,-535.317788,0.0003299,7]
[388043242,1758987044627,-535.317788,0.0003299,7]
[388043243,1758987044638,-535.317788,0.0003299,7]
[388043244,1758987044652,-151.0,0.0003299,7]
[388043245,1758987044661,-151.0,0.0003299,7]
[388043246,1758987044671,-161.22916,0.0003299,7]
[388043247,1758987044680,-151.0,0.0003299,7]
[388043248,1758987044690,-151.0,0.0003299,7]
[388043249,1758987044700,-151.0,0.0003299,7]
[388043250,1758987044710,-151.0,0.0003299,7]
[388043251,1758987044719,-151.0,0.0003299,7]
[388043252,1758987044729,-151.0,0.0003299,7]
[388043253,1758987044738,-300.607887,0.0003299,7]
[388043254,1758987044748,-300.607887,0.0003299,7]
[388043255,1758987044758,-300.607887,0.0003299,7]
[388043256,1758987044767,-300.607887,0.0003299,7]
[388043257,1758987044778,-151.0,0.0003299,7]
[388043258,1758987044787,-151.0,0.0003299,7]
[388043259,1758987044798,-221.027596,0.0003299,7]
[388043260,1758987044807,-151.0,0.0003299,7]
[388043261,1758987044817,-151.0,0.0003299,7]
[388043262,1758987044826,-241.6,0.0003299,7]
[388043263,1758987044836,-365.846877,0.0003299,7]
[388043264,1758987044846,-151.0,0.0003299,7]
[388043265,1758987044856,-151.0,0.0003299,7]
[388043266,1758987044866,-218.351948,0.0003299,7]
[388043267,1758987044876,-365.846877,0.0003299,7]
[388043268,1758987044886,-151.0,0.0003299,7]
[388043269,1758987044895,-365.846877,0.0003299,7]
[388043270,1758987044905,-151.0,0.0003299,7]
[388043271,1758987044915,-151.0,0.0003299,7]
[388043272,1758987044925,-365.846877,0.0003299,7]
[388043273,1758987044935,-151.0,0.0003299,7]
[388043274,1758987044945,-151.0,0.0003299,7]
[388043275,1758987044955,-1371.244277,0.0003299,7]
[388043276,1758987044966,-1371.244277,0.0003299,7]
[388043277,1758987044976,-1371.244277,0.0003299,7]
[388043278,1758987044985,-1371.244277,0.0003299,7]
[388043279,1758987044995,-151.0,0.00032999,2]
[388043280,1758987045006,-151.0,0.00032999,2]
[388043281,1758987045016,-151.0,0.00032999,2]
[388043282,1758987045026,-151.22223194,0.00032999,2]
[388043283,1758987045036,-192.44332133,0.00032999,2]
[388043284,1758987045046,-151.0,0.00032999,2]
[388043285,1758987045056,-151.0,0.00032999,2]
[388043286,1758987045066,-199.08738968,0.00032999,2]
[388043287,1758987045076,-151.0,0.00032999,2]
[388043288,1758987045085,-151.0,0.00032999,2]
[388043289,1758987045095,-195.75892033,0.00032999,2]
[388043290,1758987045104,-151.0,0.00032999,2]
[388043291,1758987045114,-151.0,0.00032999,2]
[388043292,1758987045124,-151.0,0.00032999,2]
[388043293,1758987045134,-500.0,0.00032999,2]
[388043294,1758987045143,-151.0,0.00032999,2]
[388043295,1758987045153,-151.0,0.00032999,2]
[388043296,1758987045163,-612.0,0.00032999,2]
[388043297,1758987045173,-151.0,0.00032999,2]
[388043298,1758987045182,-151.0,0.00032999,2]
[388043299,1758987045192,-151.0,0.00032999,2]
[388043300,1758987045201,-151.4672578,0.00032999,2]
[388043301,1758987045211,-500.0,0.00032999,2]
[388043302,1758987045222,-188.92018006,0.00032999,2]
[388043303,1758987045231,-153.78688761,0.00032999,2]
[388043304,1758987045241,-158.33962896,0.00032999,2]
[388043305,1758987045252,-151.41577387,0.00032999,2]
[388043306,1758987045261,-300.0,0.00033,2]
[388043307,1758987045271,-300.0,0.00033,2]
[388043308,1758987045280,-300.0,0.00033,2]
[388043309,1758987045290,-300.0,0.00033,2]
[388043310,1758987045299,-123814.10742473,0.00033,7]
[388043311,1758987045310,-151.0,0.00033,18]
[388043312,1758987045320,-151.0,0.00033,7]
[388043313,1758987045331,-184.888168,0.00033,7]
[388043314,1758987045341,-151.0,0.00033,7]
[388043315,1758987045351,-151.0,0.00033,7]
[388043316,1758987045360,-240.107822,0.00033,7]
[388043317,1758987045370,-151.0,0.00033,7]
[388043318,1758987045380,-153.658346,0.00033,7]
[388043319,1758987045390,-293.216661,0.00033,7]
[388043321,1758987045399,-151.0,0.00033,7]
[388043322,1758987045409,-172.14,0.00033,7]
[388043323,1758987045419,-151.0,0.00033,7]
[388043324,1758987045428,-151.0,0.00033,7]
[388043325,1758987045438,-151.0,0.00033,7]
[388043326,1758987045448,-151.0,0.00033,7]
[388043327,1758987045458,-535.317788,0.00033,7]
[388043328,1758987045467,-535.317788,0.00033,7]
[388043329,1758987045477,-535.317788,0.00033,7]
[388043330,1758987045487,-535.317785,0.00033,7]
[388043331,1758987045497,-151.0,0.00033,7]
[388043332,1758987045507,-151.0,0.00033,7]
[388043333,1758987045516,-151.0,0.00033,7]
[388043334,1758987045526,-151.0,0.00033,7]
[388043335,1758987045536,-151.0,0.00033,7]
[388043336,1758987045546,-223.151947,0.00033,7]
[388043337,1758987045555,-151.0,0.00033,7]
[388043338,1758987045565,-151.0,0.00033,7]
[388043339,1758987045575,-300.607887,0.00033,7]
[388043340,1758987045584,-300.607887,0.00033,7]
[388043341,1758987045594,-300.607887,0.00033,7]
[388043342,1758987045604,-300.607887,0.00033,7]
[388043343,1758987045613,-151.0,0.00033,7]
[388043344,1758987045624,-151.0,0.00033,7]
[388043345,1758987045633,-151.0,0.00033,7]
[388043346,1758987045648,-151.0,0.00033,7]
[388043347,1758987045657,-151.0,0.00033,7]
[388043349,1758987045667,-151.0,0.00033,7]
[388043351,1758987045677,-365.846877,0.00033,7]
[388043352,1758987045688,-365.846877,0.00033,7]
[388043353,1758987045697,-192.711831,0.00033,2]
[388043354,1758987045707,-365.846877,0.00033,7]
[388043355,1758987045716,-151.0,0.00033,7]
[388043356,1758987045728,-151.0,0.00033,7]
[388043357,1758987045737,-151.0,0.00033,7]
[388043358,1758987045747,-365.846882,0.00033,7]
[388043359,1758987045756,-151.0,0.00033,7]
[388043360,1758987045766,-151.0,0.00033,7]
[388043361,1758987045776,-1371.244277,0.00033,7]
[388043362,1758987045785,-1371.244277,0.00033,7]
[388043363,1758987045795,-1371.244277,0.00033,7]
[388043364,1758987045805,-1371.24428418,0.00033,7]
[388043365,1758987045814,-6095.58194044,0.00033,7]
[388043366,1758987045834,-151.0,0.00033,7]
[388043367,1758987045847,-151.0,0.00033,7]
[388043368,1758987045858,-151.0,0.00033,7]
[388043369,1758987045869,-1215.184263,0.00033,7]
[388043370,1758987045880,-1215.184263,0.00033,7]
[388043371,1758987045891,-1215.184263,0.00033,7]
[388043373,1758987045901,-1215.184267,0.00033,7]
[388043374,1758987045912,-151.0,0.00033,7]
[388043375,1758987045922,-151.0,0.00033,7]
[388043376,1758987045933,-11531.88946851,0.00033,2]
[388043377,1758987045943,-1361.32211607,0.00033023,30]
[388043378,1758987045953,-428.9265213,0.00033036,30]
[388043379,1758987045963,-162.3399399,0.00033036,30]
[388043380,1758987045974,-296.6276561,0.00033036,30]
[388043381,1758987045984,-586.5092015,0.00033036,30]
[388043382,1758987045994,-593.8419346,0.00033036,30]
[388043383,1758987046005,-586.5092015,0.00033036,30]
[388043384,1758987046016,-162.3399399,0.00033036,30]
[388043385,1758987046027,-586.5092015,0.00033036,30]
[388043386,1758987046037,-162.3399399,0.00033036,30]
[388043387,1758987046047,-586.5092015,0.00033036,30]
[388043388,1758987046058,-307.0472852,0.00033036,30]
[388043389,1758987046069,-500.0,0.00033048,5]
[388043390,1758987046079,-1000.0,0.00033048,5]
[388043391,1758987046090,-1000.0,0.00033048,5]
[388043392,1758987046101,-1000.0,0.00033048,5]
[388043393,1758987046111,-1000.0,0.00033048,5]
[388043394,1758987046122,-691.91053659,0.00033065,2]
[388043395,1758987046132,-556.99301391,0.00033073,5]
[388043396,1758987046143,-601.31019936,0.00033073,5]
[388043397,1758987046154,-500.0,0.00033073,5]
[388043398,1758987046164,-500.0,0.00033073,5]
[388043399,1758987046174,-500.0,0.00033073,5]
[388043400,1758987046185,-500.0,0.00033073,5]
[388043401,1758987046195,-500.0,0.00033073,5]
[388043402,1758987046205,-500.0,0.00033073,5]
[388043403,1758987046215,-500.0,0.00033073,5]
[388043404,1758987046226,-500.0,0.00033073,5]
[388043405,1758987046237,-500.0,0.00033073,5]
[388043406,1758987046247,-800.0,0.00033083,2]
[388043407,1758987046257,-233.76631357,0.00033085,7]
[388043408,1758987046268,-1033.00774378,0.00033089,2]
[388043409,1758987046279,-233.76631357,0.00033099,30]
[388043410,1758987046490,-544391.57276544,0.000331,30]
[388043411,1758987046501,-2523.0,0.00033101,60]
[388043412,1758987046511,-256.5,0.00033101,60]
[388043413,1758987046521,-4588.0,0.00033103,2]
[388043414,1758987046530,-869.22639067,0.00033127,7]
[388043415,1758987046539,-204.43188598,0.00033129,4]
[388043416,1758987046549,-504.07436454,0.00033173,5]
[388043417,1758987046559,-500.0,0.00033173,5]
[388043418,1758987046568,-500.0,0.00033173,5]
[388043419,1758987046577,-500.0,0.00033173,5]
[388043420,1758987046586,-500.0,0.00033173,5]
[388043421,1758987046596,-500.0,0.00033173,5]
[388043422,1758987046605,-500.0,0.00033173,5]
[388043423,1758987046615,-500.0,0.00033173,5]
[388043424,1758987046625,-500.0,0.00033173,5]
[388043425,1758987046634,-500.0,0.00033173,5]
[388043426,1758987046648,-500.0,0.00033173,5]
[388043427,1758987046657,-500.0,0.00033173,5]
[388043428,1758987046667,-500.0,0.00033173,5]
[388043429,1758987046676,-500.0,0.00033173,5]
[388043430,1758987046686,-161.18271245,0.00033173,5]
[388043431,1758987046695,-500.0,0.00033173,5]
[388043432,1758987046705,-500.0,0.00033173,5]
[388043433,1758987046715,-500.0,0.00033173,5]
[388043434,1758987046724,-500.0,0.00033173,5]
[388043435,1758987046733,-500.0,0.00033173,5]
[388043436,1758987046743,-150.0,0.00033173,5]
[388043437,1758987046752,-390.06750758,0.00033173,5]
[388043438,1758987047431,-110.19899365,0.00033173,5]
[388043439,1758987047441,-525.9094451,0.00033173,5]
[388043440,1758987047450,-500.0,0.00033173,5]
[388043441,1758987047459,-500.0,0.00033173,5]
[388043442,1758987047468,-568.98373301,0.00033173,5]
[388043443,1758987047478,-500.0,0.00033173,5]
[388043444,1758987047487,-238.57457338,0.00033173,5]
[388043445,1758987047497,-500.0,0.00033173,5]
[388043446,1758987047507,-500.0,0.00033173,5]
[388043447,1758987047517,-500.0,0.00033173,5]
[388043448,1758987047527,-198.03635919,0.00033173,5]
[388043449,1758987047538,-303.06878979,0.00033173,5]
[388043450,1758987047548,-500.0,0.00033173,5]
[388043451,1758987047558,-388.25978654,0.00033173,5]
[388043452,1758987047686,-29.7471953,0.00033173,5]
[388043453,1758987048420,-81.99301816,0.00033173,5]
[388043454,1758987048430,-160.0,0.00033174,2]
[388043455,1758987048440,-56.69562224,0.00033205,20]
[388043456,1758987048679,-3328.97895182,0.00033205,20]
[388043457,1758987049884,-1657.955069,0.000325,11]
[388043458,1758987049893,-1000.0,0.00033,11]
[388043459,1758987049903,-238136.38863311,0.00033205,20]
[388043460,1758987049957,-14498.74686603,0.00033205,20]
[388043461,1758987057874,167.19295,0.00014935,2]
[388043464,1758987099414,178.0,9.1e-07,2]
[388043478,1758987296902,-5000.0,0.00023985,2]
[388043479,1758987297131,-618.05236495,0.00024226,2]
[388043480,1758987297162,-500.0,0.00024226,2]
[388043481,1758987297196,-500.0,0.00024226,2]
[388043482,1758987297227,-500.0,0.00024226,2]
[388043483,1758987297257,-500.0,0.00024226,2]
[388043484,1758987297287,-257.58896618,0.00024226,2]
[388043485,1758987297318,-500.0,0.00024226,2]
[388043486,1758987297350,-500.0,0.00024226,2]
[388043487,1758987297597,-387.41604977,0.00024226,2]
[388043488,1758987297631,-500.0,0.00024226,2]
[388043489,1758987297752,-500.0,0.00024226,2]
[388043490,1758987297782,-419.65251304,0.00024226,2]
[388043491,1758987297810,-500.0,0.00024226,2]
[388043492,1758987297842,-200.0,0.00024226,2]
[388043493,1758987297872,-500.0,0.00024226,2]
[388043494,1758987297903,-500.0,0.00024226,2]
[388043495,1758987298015,-5000.0,0.00024227,2]
[388043496,1758987298065,-177.0,0.00024301,12]
[388043497,1758987298094,-500.0,0.000248,2]
[388043498,1758987298123,-300.0,0.00024951,2]
[388043499,1758987298151,-1200.0,0.00024952,2]
[388043501,1758987300984,109028.2140894,0.00033199,60]
[388043502,1758987302197,5000.0,0.00024952,2]
[388043503,1758987303014,300.0,0.00024951,2]
[388043504,1758987303078,300.0,0.00024951,2]
[388043505,1758987304936,46.01,0.00024951,2]
[388043506,1758987304959,1153.99,0.00024951,2]
[388043507,1758987318296,5000.0,0.00024952,2]
[388043508,1758987326320,2041.70900984,0.00024952,2]
[388043509,1758987327274,-6158.31099016,0.00024952,2]
[388043510,1758987327408,-10000.01,0.00024952,2]
[388043511,1758987327546,-10000.01,0.00024952,2]
[388043512,1758987327684,-10000.01,0.00024952,2]
[388043513,1758987338338,300.0,0.000137,2]
[388043514,1758987341875,5000.0,0.00024952,2]
[388043515,1758987350132,4700.01,0.00024952,2]
[388043516,1758987350155,299.99,0.00024952,2]
[388043517,1758987350772,300.0,0.000137,2]
[388043518,1758987358515,5000.0,0.00024952,2]
[388043519,1758987361549,300.0,0.000137,2]
[388043520,1758987362940,300.0,0.00024951,2]
[388043521,1758987367145,3800.02,0.00024952,2]
[388043522,1758987367170,1199.98,0.00024952,2]
[388043523,1758987375416,5000.0,0.00024952,2]
[388043524,1758987384018,197.13639555,0.00024952,2]
[388043525,1758987392232,3602.89360445,0.00024952,2]
[388043526,1758987392255,1397.10639555,0.00024952,2]
[388043527,1758987394448,268.85027923,0.00024951,2]
[388043528,1758987394479,326.1047618,0.00024951,2]
[388043529,1758987400295,3441.05532754,0.00024952,2]
[388043530,1758987415665,4566.89323588,0.00024952,2]
[388043531,1758987415689,433.10676412,0.00024952,2]
[388043532,1758987422809,300.0,0.00024951,2]
[388043533,1758987439050,5000.0,0.00024952,2]
[388043535,1758987455274,500.0,0.00024951,2]
[388043536,1758987455328,524.12482776,0.00024951,2]
[388043537,1758987455434,500.0,0.00024951,2]
[388043538,1758987455464,500.0,0.00024951,2]
[388043539,1758987455524,407.12877076,0.00024951,2]
[388043540,1758987455637,500.0,0.00024951,2]
[388043541,1758987455683,182.48289604,0.00024951,2]
[388043542,1758987456487,359.15903568,0.00024951,2]
[388043543,1758987458922,500.0,0.00024951,2]
[388043544,1758987458978,294.00770564,0.00024951,2]
[388043545,1758987459002,164.35036264,0.00024951,2]
[388043546,1758987463072,5000.0,0.00024952,2]
[388043547,1758987465834,204.62870398,0.00024852,2]
[388043548,1758987473095,500.0,0.00024951,2]
[388043549,1758987473147,500.0,0.00024951,2]
[388043550,1758987473257,500.0,0.00024951,2]
[388043551,1758987473751,500.0,0.00024951,2]
[388043552,1758987474826,500.0,0.00024951,2]
[388043553,1758987474964,500.0,0.00024951,2]
[388043554,1758987475018,448.23965552,0.00024951,2]
[388043555,1758987486033,500.0,0.00024951,2]
[388043556,1758987486091,500.0,0.00024951,2]
[388043557,1758987486135,182.79127786,0.00024951,2]
[388043558,1758987486159,317.20872214,0.00024951,2]
[388043559,1758987486189,500.0,0.00024951,2]
[388043560,1758987486219,500.0,0.00024951,2]
[388043561,1758987486252,613.87683368,0.00024951,2]
[388043562,1758987486285,500.0,0.00024951,2]
[388043563,1758987486320,500.0,0.00024951,2]
[388043564,1758987486357,500.0,0.00024951,2]
[388043565,1758987486392,500.0,0.00024951,2]
[388043566,1758987486453,500.0,0.00024951,2]
[388043567,1758987486492,391.23020322,0.00024951,2]
[388043568,1758987486527,500.0,0.00024951,2]
[388043569,1758987486704,4677.69424096,0.00024952,2]
[388043571,1758987602475,-160.0,0.00024301,12]
[388043572,1758987616820,161.0,0.000243,2]
[388043573,1758987617831,161.0,0.000243,2]
[388043574,1758987665735,162.0,0.000243,3]
[388043575,1758987677875,163.56824728,0.000243,3]
[388043576,1758987720507,-5000.0,0.00024703,2]
[388043579,1758987925583,5000.0,0.00024563,2]
[388043580,1758988052143,-212.72440811,0.00024953,2]
[388043581,1758988151103,-5000.0,0.00024953,2]
[388043582,1758988151123,-380.0,0.00026197,2]
[388043583,1758988151142,-346.7839781,0.00026245,2]
[388043584,1758988151163,-300.0,0.00027261,2]
[388043585,1758988151183,-234.87520374,0.00027262,2]
[388043586,1758988151203,-487.91446703,0.00027262,2]
[388043587,1758988151225,-500.0,0.00027262,2]
[388043588,1758988151251,-500.0,0.00027262,2]
[388043589,1758988151271,-436.3999876,0.00027262,2]
[388043590,1758988151291,-500.0,0.00027262,2]
[388043591,1758988151315,-292.87122924,0.00027262,2]
[388043592,1758988151335,-516.50794371,0.00027263,2]
[388043593,1758988170414,-5000.0,0.00024953,2]
[388043594,1758988170647,-119.17733426,0.00027263,2]
[388043595,1758988170669,-441.17236861,0.00027263,2]
[388043596,1758988170695,-4195.90490744,0.00027264,2]
[388043597,1758988191657,5000.0,0.00024563,2]
[388043598,1758988214522,0.01,0.00024563,2]
[388043599,1758988214547,4999.99,0.00024563,2]
[388043600,1758988223993,160.0,0.00024563,2]
[388043626,1758988232732,-300.0,0.00024899,2]
[388043627,1758988232742,-2081.27512513,0.00025,2]
[388043628,1758988232751,-12116.88619856,0.00026,2]
[388043629,1758988232760,-420.0,0.00026977,2]
[388043630,1758988232769,-15432.37637648,0.00027264,2]
[388043697,1758988238665,-5000.0,0.00024953,2]
[388043699,1758988238677,-1042.481226,0.00025733,2]
[388043701,1758988238687,-15437.69356114,0.00027264,2]
[388043703,1758988238697,-666.0,0.00027582,2]
[388043705,1758988238707,-197.73130406,0.00027629,2]
[388043707,1758988238717,-186.893514,0.00027633,60]
[388043709,1758988238726,-197.73130406,0.00027962,6]
[388043711,1758988238736,-197.73130406,0.00028294,10]
[388043712,1758988238746,-197.73130406,0.00028294,10]
[388043715,1758988238756,-197.73130406,0.00028627,14]
[388043717,1758988238766,-197.73130406,0.00028627,14]
[388043718,1758988238776,-197.73130406,0.00028959,18]
[388043720,1758988238787,-197.73130406,0.00028959,18]
[388043723,1758988238797,-302.3764568,0.00029218,2]
[388043724,1758988238807,-492.0,0.00029228,2]
[388043726,1758988238816,-230.8039011,0.00029384,2]
[388043728,1758988238826,-653.3975524,0.00029605,2]
[388043730,1758988238836,-306.34079623,0.00029608,2]
[388043732,1758988238846,-1000.0,0.00029679,30]
[388043734,1758988238857,-198.873,0.00030106,25]
[388043736,1758988238868,-4221.84,0.00030108,2]
[388043738,1758988238878,-276.0,0.00030955,7]
[388043740,1758988238888,-480.0,0.00031163,15]
[388043742,1758988238898,-812.49641957,0.00031223,2]
[388043744,1758988238908,-168.0,0.00031274,2]